[Event "Titled Tuesday Blitz May 24 Early 2022"]
[White "Solovchuk, Oleksiy"]
[Black "Gu, Xiaobing"]
[WhiteFideId "14115220"]
[BlackFideId "8602611"]
[WhiteElo "2305"]
[BlackElo "2174"]
[Result "1-0"]
[Round "01"]
[TimeControl "180+1"]
[Date "2022.05.25"]
[WhiteClock "0:00:38"]
[BlackClock "0:00:18"]

1. c4 {[%clk 0:03:00]}  Nf6 {[%clk 0:02:58]} 2. Nc3 {[%clk 0:03:01]}  g6 {[%clk 0:02:55]} 3. d4 {[%clk 0:03:00]}  Bg7 {[%clk 0:02:55]} 4. e4 {[%clk 0:03:00]}  O-O {[%clk 0:02:55]} 5. e5 {[%clk 0:02:59]}  Ne8 {[%clk 0:02:54]} 6. f4 {[%clk 0:03:00]}  d6 {[%clk 0:02:54]} 7. Nf3 {[%clk 0:03:00]}  c5 {[%clk 0:02:53]} 8. dxc5 {[%clk 0:03:00]}  Qa5 {[%clk 0:02:48]} 9. exd6 {[%clk 0:02:50]}  exd6 {[%clk 0:02:47]} 10. Bd2 {[%clk 0:02:45]}  Qxc5 {[%clk 0:02:42]} 11. Ne4 {[%clk 0:02:45]}  Qb6 {[%clk 0:02:33]} 12. Qb3 {[%clk 0:02:38]}  Bxb2 {[%clk 0:02:26]} 13. Rb1 {[%clk 0:02:35]}  Qxb3 {[%clk 0:02:25]} 14. axb3 {[%clk 0:02:35]}  Bg7 {[%clk 0:02:25]} 15. Bd3 {[%clk 0:02:25]}  Nc6 {[%clk 0:02:23]} 16. O-O {[%clk 0:02:24]}  Bg4 {[%clk 0:02:16]} 17. h3 {[%clk 0:02:23]}  Bxf3 {[%clk 0:02:11]} 18. Rxf3 {[%clk 0:02:23]}  Nd4 {[%clk 0:02:12]} 19. Rff1 {[%clk 0:02:21]}  Rd8 {[%clk 0:02:12]} 20. Nc3 {[%clk 0:02:21]}  Nc7 {[%clk 0:02:07]} 21. Be4 {[%clk 0:02:20]}  b6 {[%clk 0:02:06]} 22. f5 {[%clk 0:02:17]}  Be5 {[%clk 0:02:01]} 23. Bg5 {[%clk 0:02:13]}  f6 {[%clk 0:02:01]} 24. Bh6 {[%clk 0:02:13]}  Rfe8 {[%clk 0:02:00]} 25. fxg6 {[%clk 0:02:12]}  f5 {[%clk 0:01:52]} 26. Nd5 {[%clk 0:02:06]}  Ne2+ {[%clk 0:01:44]} 27. Kf2 {[%clk 0:02:00]}  Nc3 {[%clk 0:01:37]} 28. Nxc3 {[%clk 0:01:55]}  Bxc3 {[%clk 0:01:30]} 29. Bxf5 {[%clk 0:01:55]}  hxg6 {[%clk 0:01:28]} 30. Bd3 {[%clk 0:01:46]}  Kh7 {[%clk 0:01:28]} 31. Bg5 {[%clk 0:01:45]}  Rd7 {[%clk 0:01:17]} 32. Kg3 {[%clk 0:01:43]}  Ne6 {[%clk 0:01:07]} 33. Bf6 {[%clk 0:01:43]}  Be5+ {[%clk 0:01:03]} 34. Kg4 {[%clk 0:01:38]}  Nd4 {[%clk 0:00:55]} 35. Bxe5 {[%clk 0:01:33]}  dxe5 {[%clk 0:00:55]} 36. Be4 {[%clk 0:01:26]}  Nf5 {[%clk 0:00:52]} 37. Rxf5 {[%clk 0:01:08]}  Rd4 {[%clk 0:00:48]} 38. Rf7+ {[%clk 0:01:06]}  Kg8 {[%clk 0:00:45]} 39. Rbf1 {[%clk 0:01:04]}  Rxe4+ {[%clk 0:00:45]} 40. Kg5 {[%clk 0:01:04]}  Re3 {[%clk 0:00:26]} 41. Rxa7 {[%clk 0:00:52]}  Rg3+ {[%clk 0:00:21]} 42. Kh6 {[%clk 0:00:52]}  g5 {[%clk 0:00:22]} 43. Rf6 {[%clk 0:00:43]}  e4 {[%clk 0:00:18]} 44. Rg7+ {[%clk 0:00:38]}  Kh8 {[%clk 0:00:18]} 45. Rfg6 {[%clk 0:00:38]}  e3 {[%clk 0:00:18]} 46. Rh7# {[%clk 0:00:38]} 1-0


[Site "https://www.chess.com"]

[Event "Titled Tuesday Blitz May 24 Early 2022"]
[White "Stanisz, Patryk"]
[Black "Prokofiev, Valentyn"]
[WhiteFideId "1123106"]
[BlackFideId "14160161"]
[WhiteElo "1833"]
[BlackElo "2174"]
[Result "0-1"]
[Round "01"]
[TimeControl "180+1"]
[Date "2022.05.25"]
[WhiteClock "0:00:54"]
[BlackClock "0:01:53"]

1. d4 {[%clk 0:02:59]}  Nf6 {[%clk 0:02:59]} 2. c4 {[%clk 0:02:59]}  g6 {[%clk 0:03:00]} 3. Nc3 {[%clk 0:02:58]}  c5 {[%clk 0:03:00]} 4. Nf3 {[%clk 0:02:57]}  Bg7 {[%clk 0:02:58]} 5. e4 {[%clk 0:02:56]}  d6 {[%clk 0:02:55]} 6. Be2 {[%clk 0:02:55]}  O-O {[%clk 0:02:55]} 7. O-O {[%clk 0:02:54]}  Na6 {[%clk 0:02:52]} 8. d5 {[%clk 0:02:46]}  e6 {[%clk 0:02:52]} 9. h3 {[%clk 0:02:45]}  Re8 {[%clk 0:02:52]} 10. Bg5 {[%clk 0:02:33]}  h6 {[%clk 0:02:51]} 11. Bf4 {[%clk 0:02:32]}  exd5 {[%clk 0:02:41]} 12. exd5 {[%clk 0:02:31]}  Bf5 {[%clk 0:02:40]} 13. a3 {[%clk 0:02:28]}  Nc7 {[%clk 0:02:38]} 14. Qd2 {[%clk 0:02:24]}  Kh7 {[%clk 0:02:35]} 15. Rfe1 {[%clk 0:02:23]}  Ne4 {[%clk 0:02:32]} 16. Nxe4 {[%clk 0:02:23]}  Bxe4 {[%clk 0:02:33]} 17. Rac1 {[%clk 0:02:14]}  b5 {[%clk 0:02:18]} 18. b3 {[%clk 0:02:10]}  Rb8 {[%clk 0:02:15]} 19. Qa5 {[%clk 0:01:50]}  Rb7 {[%clk 0:02:12]} 20. Nd2 {[%clk 0:01:41]}  Bd4 {[%clk 0:01:54]} 21. Nxe4 {[%clk 0:01:19]}  Rxe4 {[%clk 0:01:55]} 22. Bg3 {[%clk 0:01:06]}  Qg5 {[%clk 0:01:53]} 23. h4 {[%clk 0:00:54]}  Qxg3 {[%clk 0:01:53]} 0-1


[Site "https://www.chess.com"]

[Event "Titled Tuesday Blitz May 24 Early 2022"]
[White "Svane, Rasmus"]
[Black "Koutlas, Nikolaos"]
[WhiteFideId "4657101"]
[BlackFideId "25827138"]
[WhiteElo "2674"]
[BlackElo "1645"]
[Result "1-0"]
[Round "01"]
[TimeControl "180+1"]
[Date "2022.05.24"]
[WhiteClock "0:00:40"]
[BlackClock "0:00:16"]

1. Nf3 {[%clk 0:03:00]}  c5 {[%clk 0:02:58]} 2. c4 {[%clk 0:03:00]}  Nc6 {[%clk 0:02:58]} 3. Nc3 {[%clk 0:03:00]}  g6 {[%clk 0:02:57]} 4. e3 {[%clk 0:03:00]}  Bg7 {[%clk 0:02:57]} 5. d4 {[%clk 0:03:01]}  d6 {[%clk 0:02:58]} 6. Be2 {[%clk 0:03:01]}  Nf6 {[%clk 0:02:57]} 7. h3 {[%clk 0:03:01]}  cxd4 {[%clk 0:02:54]} 8. exd4 {[%clk 0:03:01]}  O-O {[%clk 0:02:54]} 9. d5 {[%clk 0:03:00]}  Nb4 {[%clk 0:02:54]} 10. O-O {[%clk 0:02:58]}  a5 {[%clk 0:02:52]} 11. Nd4 {[%clk 0:02:58]}  Bd7 {[%clk 0:02:44]} 12. Be3 {[%clk 0:02:58]}  Rc8 {[%clk 0:02:44]} 13. Re1 {[%clk 0:02:58]}  Na6 {[%clk 0:02:36]} 14. Bf1 {[%clk 0:02:56]}  Nc5 {[%clk 0:02:35]} 15. Rc1 {[%clk 0:02:55]}  Nfe4 {[%clk 0:02:28]} 16. Nxe4 {[%clk 0:02:55]}  Nxe4 {[%clk 0:02:29]} 17. b3 {[%clk 0:02:45]}  a4 {[%clk 0:02:02]} 18. Qd3 {[%clk 0:02:41]}  Nc5 {[%clk 0:02:00]} 19. Qc3 {[%clk 0:02:38]}  b5 {[%clk 0:01:55]} 20. b4 {[%clk 0:02:05]}  bxc4 {[%clk 0:01:35]} 21. Bxc4 {[%clk 0:02:05]}  Ne4 {[%clk 0:01:24]} 22. Qd3 {[%clk 0:02:05]}  Nf6 {[%clk 0:01:21]} 23. Nc6 {[%clk 0:02:02]}  Bxc6 {[%clk 0:01:17]} 24. dxc6 {[%clk 0:02:03]}  Rxc6 {[%clk 0:01:17]} 25. Bxf7+ {[%clk 0:02:03]}  Rxf7 {[%clk 0:01:14]} 26. Rxc6 {[%clk 0:02:04]}  Nd7 {[%clk 0:01:12]} 27. Bd4 {[%clk 0:02:01]}  Qf8 {[%clk 0:01:01]} 28. Bxg7 {[%clk 0:01:54]}  Kxg7 {[%clk 0:01:01]} 29. Qd4+ {[%clk 0:01:47]}  Ne5 {[%clk 0:00:58]} 30. Rc7 {[%clk 0:01:23]}  Rf4 {[%clk 0:00:50]} 31. Re4 {[%clk 0:01:15]}  Rxe4 {[%clk 0:00:35]} 32. Qxe4 {[%clk 0:01:16]}  Qf7 {[%clk 0:00:34]} 33. b5 {[%clk 0:01:14]}  Qxa2 {[%clk 0:00:33]} 34. Rxe7+ {[%clk 0:01:05]}  Kf6 {[%clk 0:00:31]} 35. Qh4+ {[%clk 0:01:00]}  g5 {[%clk 0:00:30]} 36. Qxh7 {[%clk 0:01:00]}  Qa1+ {[%clk 0:00:19]} 37. Kh2 {[%clk 0:01:00]}  Qd4 {[%clk 0:00:19]} 38. Qg7+ {[%clk 0:00:52]}  Kf5 {[%clk 0:00:19]} 39. Qf8+ {[%clk 0:00:43]}  Ke4 {[%clk 0:00:16]} 40. Qf3# {[%clk 0:00:40]} 1-0


[Site "https://www.chess.com"]

[Event "Titled Tuesday Blitz May 24 Early 2022"]
[White "Swiercz, Dariusz"]
[Black "Lamaze, Simon"]
[WhiteFideId "1126881"]
[BlackFideId "36069264"]
[WhiteElo "2627"]
[BlackElo "1999"]
[Result "1-0"]
[Round "01"]
[TimeControl "180+1"]
[Date "2022.05.24"]
[WhiteClock "0:00:05"]
[BlackClock "0:00:12"]

1. Nf3 {[%clk 0:01:08]}  Nf6 {[%clk 0:02:55]} 2. b3 {[%clk 0:01:09]}  g6 {[%clk 0:02:55]} 3. Bb2 {[%clk 0:01:09]}  Bg7 {[%clk 0:02:55]} 4. e3 {[%clk 0:01:09]}  O-O {[%clk 0:02:56]} 5. d4 {[%clk 0:01:10]}  d5 {[%clk 0:02:53]} 6. Be2 {[%clk 0:01:09]}  b6 {[%clk 0:02:50]} 7. Nbd2 {[%clk 0:01:09]}  Bb7 {[%clk 0:02:51]} 8. O-O {[%clk 0:01:10]}  Nbd7 {[%clk 0:02:51]} 9. c4 {[%clk 0:01:11]}  c5 {[%clk 0:02:51]} 10. Rc1 {[%clk 0:01:11]}  Rc8 {[%clk 0:02:46]} 11. dxc5 {[%clk 0:01:11]}  Nxc5 {[%clk 0:02:46]} 12. cxd5 {[%clk 0:01:10]}  Bxd5 {[%clk 0:02:43]} 13. Nc4 {[%clk 0:01:08]}  Bb7 {[%clk 0:02:41]} 14. Bd4 {[%clk 0:01:06]}  Re8 {[%clk 0:02:11]} 15. Nce5 {[%clk 0:00:57]}  Nfd7 {[%clk 0:01:47]} 16. Bb5 {[%clk 0:00:47]}  a6 {[%clk 0:01:28]} 17. Nxd7 {[%clk 0:00:40]}  Nxd7 {[%clk 0:01:25]} 18. Bxg7 {[%clk 0:00:40]}  axb5 {[%clk 0:01:25]} 19. Bb2 {[%clk 0:00:37]}  Nc5 {[%clk 0:01:18]} 20. Qxd8 {[%clk 0:00:22]}  Rexd8 {[%clk 0:01:17]} 21. Bd4 {[%clk 0:00:23]}  f6 {[%clk 0:01:01]} 22. h3 {[%clk 0:00:17]}  e5 {[%clk 0:01:00]} 23. Bxc5 {[%clk 0:00:18]}  bxc5 {[%clk 0:00:56]} 24. Rc2 {[%clk 0:00:17]}  e4 {[%clk 0:00:26]} 25. Nd2 {[%clk 0:00:16]}  Rd3 {[%clk 0:00:25]} 26. Rfc1 {[%clk 0:00:16]}  Rcd8 {[%clk 0:00:25]} 27. Nf1 {[%clk 0:00:15]}  Rd1 {[%clk 0:00:19]} 28. Rxc5 {[%clk 0:00:14]}  Rxc1 {[%clk 0:00:19]} 29. Rxc1 {[%clk 0:00:14]}  Rd7 {[%clk 0:00:18]} 30. Ra1 {[%clk 0:00:11]}  b4 {[%clk 0:00:17]} 31. a3 {[%clk 0:00:11]}  bxa3 {[%clk 0:00:18]} 32. Rxa3 {[%clk 0:00:11]}  Rd1 {[%clk 0:00:18]} 33. g4 {[%clk 0:00:11]}  Bc6 {[%clk 0:00:17]} 34. Kg2 {[%clk 0:00:10]}  h5 {[%clk 0:00:15]} 35. gxh5 {[%clk 0:00:08]}  gxh5 {[%clk 0:00:16]} 36. Ng3 {[%clk 0:00:09]}  h4 {[%clk 0:00:12]} 37. Nf5 {[%clk 0:00:09]}  Kf7 {[%clk 0:00:12]} 38. Ra7+ {[%clk 0:00:08]}  Kf8 {[%clk 0:00:11]} 39. Nxh4 {[%clk 0:00:07]}  Bb5 {[%clk 0:00:11]} 40. Ng6+ {[%clk 0:00:07]}  Kg8 {[%clk 0:00:12]} 41. Nf4 {[%clk 0:00:08]}  Rb1 {[%clk 0:00:12]} 42. Nd5 {[%clk 0:00:04]}  Bf1+ {[%clk 0:00:09]} 43. Kg3 {[%clk 0:00:04]}  Be2 {[%clk 0:00:10]} 44. Nxf6+ {[%clk 0:00:04]}  Kf8 {[%clk 0:00:10]} 45. Kf4 {[%clk 0:00:05]}  Rxb3 {[%clk 0:00:11]} 46. h4 {[%clk 0:00:05]}  Bf3 {[%clk 0:00:11]} 47. h5 {[%clk 0:00:05]}  Rb6 {[%clk 0:00:12]} 48. Kg5 {[%clk 0:00:05]}  Rb5+ {[%clk 0:00:12]} 49. Kg6 {[%clk 0:00:05]} 1-0


[Site "https://www.chess.com"]

[Event "Titled Tuesday Blitz May 24 Early 2022"]
[White "Sydoryka, Vladyslav"]
[Black "Martinez Alcantara, Jose Eduardo"]
[WhiteFideId "14145928"]
[BlackFideId "3805662"]
[WhiteElo "2283"]
[BlackElo "2690"]
[Result "0-1"]
[Round "01"]
[TimeControl "180+1"]
[Date "2022.05.24"]
[WhiteClock "0:00:03"]
[BlackClock "0:00:38"]

1. c4 {[%clk 0:03:00]}  c5 {[%clk 0:02:59]} 2. g3 {[%clk 0:02:59]}  Nc6 {[%clk 0:02:59]} 3. Bg2 {[%clk 0:02:59]}  g6 {[%clk 0:02:59]} 4. Nc3 {[%clk 0:03:00]}  Bg7 {[%clk 0:02:59]} 5. Nf3 {[%clk 0:03:01]}  d6 {[%clk 0:02:59]} 6. O-O {[%clk 0:03:00]}  e6 {[%clk 0:03:00]} 7. Rb1 {[%clk 0:02:59]}  Nge7 {[%clk 0:02:59]} 8. a3 {[%clk 0:03:00]}  b6 {[%clk 0:02:44]} 9. b4 {[%clk 0:02:58]}  Rb8 {[%clk 0:02:43]} 10. e3 {[%clk 0:02:43]}  O-O {[%clk 0:02:24]} 11. d4 {[%clk 0:02:35]}  cxd4 {[%clk 0:02:24]} 12. exd4 {[%clk 0:02:36]}  d5 {[%clk 0:02:25]} 13. c5 {[%clk 0:02:34]}  bxc5 {[%clk 0:02:25]} 14. bxc5 {[%clk 0:02:35]}  Rxb1 {[%clk 0:02:24]} 15. Nxb1 {[%clk 0:02:36]}  Nf5 {[%clk 0:02:21]} 16. Be3 {[%clk 0:02:30]}  Qa5 {[%clk 0:02:20]} 17. g4 {[%clk 0:02:22]}  Nxe3 {[%clk 0:02:20]} 18. fxe3 {[%clk 0:02:23]}  e5 {[%clk 0:02:07]} 19. h3 {[%clk 0:01:47]}  exd4 {[%clk 0:01:39]} 20. exd4 {[%clk 0:01:48]}  Re8 {[%clk 0:01:39]} 21. Kh1 {[%clk 0:01:42]}  h6 {[%clk 0:01:38]} 22. Nbd2 {[%clk 0:01:39]}  Qxa3 {[%clk 0:01:32]} 23. Re1 {[%clk 0:01:32]}  Rxe1+ {[%clk 0:01:28]} 24. Qxe1 {[%clk 0:01:33]}  Be6 {[%clk 0:01:28]} 25. Qg1 {[%clk 0:01:17]}  Qc3 {[%clk 0:01:25]} 26. Nb1 {[%clk 0:00:45]}  Qb2 {[%clk 0:01:21]} 27. Qd1 {[%clk 0:00:38]}  Nxd4 {[%clk 0:01:15]} 28. Nxd4 {[%clk 0:00:37]}  Bxd4 {[%clk 0:01:15]} 29. c6 {[%clk 0:00:37]}  Be5 {[%clk 0:01:14]} 30. Nd2 {[%clk 0:00:34]}  Qc3 {[%clk 0:01:06]} 31. Nf3 {[%clk 0:00:34]}  Bf6 {[%clk 0:00:57]} 32. Qa4 {[%clk 0:00:32]}  Kg7 {[%clk 0:00:54]} 33. Qa6 {[%clk 0:00:29]}  d4 {[%clk 0:00:53]} 34. Ng1 {[%clk 0:00:07]}  d3 {[%clk 0:00:49]} 35. Bf3 {[%clk 0:00:06]}  d2 {[%clk 0:00:48]} 36. Qa4 {[%clk 0:00:05]}  a5 {[%clk 0:00:42]} 37. Qd1 {[%clk 0:00:02]}  Bb3 {[%clk 0:00:41]} 38. Qe2 {[%clk 0:00:02]}  a4 {[%clk 0:00:41]} 39. Qf1 {[%clk 0:00:01]}  a3 {[%clk 0:00:41]} 40. Ne2 {[%clk 0:00:02]}  Qxf3+ {[%clk 0:00:37]} 41. Qxf3 {[%clk 0:00:03]}  d1=Q+ {[%clk 0:00:38]} 42. Kg2 {[%clk 0:00:03]}  Bd5 {[%clk 0:00:38]} 0-1


[Site "https://www.chess.com"]

[Event "Titled Tuesday Blitz May 24 Early 2022"]
[White "Tari, Aryan"]
[Black "Dounis, Alexandros"]
[WhiteFideId "1510045"]
[BlackFideId "4213238"]
[WhiteElo "2567"]
[BlackElo "2204"]
[Result "1-0"]
[Round "01"]
[TimeControl "180+1"]
[Date "2022.05.24"]
[WhiteClock "0:00:59"]
[BlackClock "0:00:07"]

1. c4 {[%clk 0:02:41]}  Nf6 {[%clk 0:02:59]} 2. g3 {[%clk 0:02:39]}  g6 {[%clk 0:02:56]} 3. Bg2 {[%clk 0:02:39]}  d5 {[%clk 0:02:56]} 4. cxd5 {[%clk 0:02:39]}  Nxd5 {[%clk 0:02:57]} 5. Nc3 {[%clk 0:02:40]}  Nxc3 {[%clk 0:02:56]} 6. bxc3 {[%clk 0:02:40]}  Bg7 {[%clk 0:02:53]} 7. Rb1 {[%clk 0:02:40]}  Nc6 {[%clk 0:02:51]} 8. h4 {[%clk 0:02:38]}  h5 {[%clk 0:02:48]} 9. Nf3 {[%clk 0:02:35]}  O-O {[%clk 0:02:48]} 10. O-O {[%clk 0:02:35]}  b6 {[%clk 0:02:38]} 11. Ng5 {[%clk 0:02:31]}  Bb7 {[%clk 0:02:36]} 12. d4 {[%clk 0:02:25]}  Na5 {[%clk 0:02:29]} 13. Bxb7 {[%clk 0:02:07]}  Nxb7 {[%clk 0:02:30]} 14. e4 {[%clk 0:02:07]}  c5 {[%clk 0:02:28]} 15. Be3 {[%clk 0:02:05]}  Rc8 {[%clk 0:02:27]} 16. Qd3 {[%clk 0:01:59]}  Qd7 {[%clk 0:02:23]} 17. d5 {[%clk 0:01:57]}  c4 {[%clk 0:02:22]} 18. Qd2 {[%clk 0:01:54]}  Nc5 {[%clk 0:02:22]} 19. Bd4 {[%clk 0:01:54]}  Nd3 {[%clk 0:02:17]} 20. Bxg7 {[%clk 0:01:54]}  Kxg7 {[%clk 0:02:18]} 21. Qe3 {[%clk 0:01:54]}  e5 {[%clk 0:02:15]} 22. dxe6 {[%clk 0:01:50]}  fxe6 {[%clk 0:02:14]} 23. Qd4+ {[%clk 0:01:51]}  Qxd4 {[%clk 0:02:13]} 24. Nxe6+ {[%clk 0:01:51]}  Kf6 {[%clk 0:02:11]} 25. Nxd4 {[%clk 0:01:52]}  Ke5 {[%clk 0:02:02]} 26. f3 {[%clk 0:01:49]}  Rfd8 {[%clk 0:01:52]} 27. Rb5+ {[%clk 0:01:48]}  Kf6 {[%clk 0:01:51]} 28. f4 {[%clk 0:01:39]}  Rxd4 {[%clk 0:01:45]} 29. cxd4 {[%clk 0:01:40]}  c3 {[%clk 0:01:46]} 30. Rb3 {[%clk 0:01:39]}  Rc4 {[%clk 0:01:34]} 31. Rd1 {[%clk 0:01:34]}  Nb4 {[%clk 0:01:13]} 32. Rc1 {[%clk 0:01:26]}  c2 {[%clk 0:01:00]} 33. Rb2 {[%clk 0:01:24]}  Rxd4 {[%clk 0:00:56]} 34. e5+ {[%clk 0:01:18]}  Kf5 {[%clk 0:00:54]} 35. Rbxc2 {[%clk 0:01:18]}  Nxc2 {[%clk 0:00:41]} 36. Rxc2 {[%clk 0:01:19]}  Kg4 {[%clk 0:00:37]} 37. Kf2 {[%clk 0:01:16]}  Rd3 {[%clk 0:00:23]} 38. e6 {[%clk 0:01:01]}  Rd8 {[%clk 0:00:22]} 39. e7 {[%clk 0:00:58]}  Re8 {[%clk 0:00:22]} 40. Rc7 {[%clk 0:00:58]}  a5 {[%clk 0:00:18]} 41. a4 {[%clk 0:00:57]}  Kf5 {[%clk 0:00:19]} 42. Rb7 {[%clk 0:00:56]}  Kf6 {[%clk 0:00:14]} 43. Rxb6+ {[%clk 0:00:56]}  Kxe7 {[%clk 0:00:14]} 44. Rxg6 {[%clk 0:00:57]}  Rb8 {[%clk 0:00:14]} 45. Ra6 {[%clk 0:00:57]}  Rb2+ {[%clk 0:00:14]} 46. Kf3 {[%clk 0:00:57]}  Rb3+ {[%clk 0:00:14]} 47. Kg2 {[%clk 0:00:58]}  Rb2+ {[%clk 0:00:14]} 48. Kh3 {[%clk 0:00:59]}  Ra2 {[%clk 0:00:08]} 49. Rxa5 {[%clk 0:00:59]}  Kf6 {[%clk 0:00:07]} 50. Rxh5 {[%clk 0:00:59]}  Rxa4 {[%clk 0:00:07]} 51. Rg5 {[%clk 0:01:00]}  Ra1 {[%clk 0:00:07]} 52. h5 {[%clk 0:01:00]}  Ra8 {[%clk 0:00:07]} 53. Kg4 {[%clk 0:01:01]}  Ra1 {[%clk 0:00:07]} 54. h6 {[%clk 0:00:59]}  Kf7 {[%clk 0:00:08]} 55. h7 {[%clk 0:00:59]}  Ra8 {[%clk 0:00:08]} 56. Rg8 {[%clk 0:00:58]}  Rxg8+ {[%clk 0:00:07]} 57. hxg8=Q+ {[%clk 0:00:59]}  Kf6 {[%clk 0:00:07]} 1-0


[Site "https://www.chess.com"]

[Event "Titled Tuesday Blitz May 24 Early 2022"]
[White "Tarigan, Gilbert Elroy"]
[Black "Balint, Vilmos"]
[WhiteFideId "7108133"]
[BlackFideId "718050"]
[WhiteElo "1908"]
[BlackElo "2059"]
[Result "1-0"]
[Round "01"]
[TimeControl "180+1"]
[Date "2022.05.25"]
[WhiteClock "0:01:08"]
[BlackClock "0:01:28"]

1. e4 {[%clk 0:02:53]}  e6 {[%clk 0:03:00]} 2. d4 {[%clk 0:02:49]}  d5 {[%clk 0:03:01]} 3. Nc3 {[%clk 0:02:43]}  Bb4 {[%clk 0:03:00]} 4. e5 {[%clk 0:02:42]}  Ne7 {[%clk 0:03:00]} 5. Bd2 {[%clk 0:02:40]}  c5 {[%clk 0:02:59]} 6. Nb5 {[%clk 0:02:39]}  Bxd2+ {[%clk 0:02:58]} 7. Qxd2 {[%clk 0:02:40]}  O-O {[%clk 0:02:58]} 8. dxc5 {[%clk 0:02:37]}  Nd7 {[%clk 0:02:50]} 9. Nf3 {[%clk 0:02:31]}  Nxc5 {[%clk 0:02:50]} 10. Bd3 {[%clk 0:02:32]}  Nxd3+ {[%clk 0:02:48]} 11. cxd3 {[%clk 0:02:24]}  a6 {[%clk 0:02:44]} 12. Nd6 {[%clk 0:02:24]}  f6 {[%clk 0:02:33]} 13. d4 {[%clk 0:02:19]}  Ng6 {[%clk 0:02:18]} 14. O-O {[%clk 0:01:50]}  Qb6 {[%clk 0:02:13]} 15. Qe3 {[%clk 0:01:27]}  Bd7 {[%clk 0:02:09]} 16. Rfe1 {[%clk 0:01:24]}  Rab8 {[%clk 0:01:58]} 17. Rac1 {[%clk 0:01:17]}  Qxb2 {[%clk 0:01:39]} 18. Rc7 {[%clk 0:01:16]}  Rfd8 {[%clk 0:01:36]} 19. exf6 {[%clk 0:01:11]}  gxf6 {[%clk 0:01:32]} 20. Rxd7 {[%clk 0:01:09]}  Rxd7 {[%clk 0:01:28]} 21. Qxe6+ {[%clk 0:01:09]}  Kh8 {[%clk 0:01:28]} 22. Qxd7 {[%clk 0:01:08]} 1-0


[Site "https://www.chess.com"]

[Event "Titled Tuesday Blitz May 24 Early 2022"]
[White "Tristan, Leonardo"]
[Black "Keller, Peter"]
[WhiteFideId "113816"]
[BlackFideId "1272105"]
[WhiteElo "2404"]
[BlackElo "2275"]
[Result "1-0"]
[Round "01"]
[TimeControl "180+1"]
[Date "2022.05.25"]
[WhiteClock "0:00:38"]
[BlackClock "0:00:19"]

1. d4 {[%clk 0:03:00]}  Nf6 {[%clk 0:02:56]} 2. Nf3 {[%clk 0:03:00]}  d5 {[%clk 0:02:55]} 3. Bf4 {[%clk 0:03:00]}  c5 {[%clk 0:02:54]} 4. e3 {[%clk 0:03:01]}  Nc6 {[%clk 0:02:46]} 5. Nbd2 {[%clk 0:03:01]}  cxd4 {[%clk 0:02:37]} 6. exd4 {[%clk 0:03:02]}  Bg4 {[%clk 0:02:37]} 7. c3 {[%clk 0:03:02]}  e6 {[%clk 0:02:37]} 8. Qb3 {[%clk 0:03:02]}  Qc8 {[%clk 0:02:16]} 9. Bd3 {[%clk 0:03:02]}  Be7 {[%clk 0:02:16]} 10. O-O {[%clk 0:03:02]}  O-O {[%clk 0:02:16]} 11. Rae1 {[%clk 0:03:02]}  a6 {[%clk 0:02:15]} 12. Qc2 {[%clk 0:02:37]}  b5 {[%clk 0:02:06]} 13. a3 {[%clk 0:02:34]}  Bh5 {[%clk 0:02:06]} 14. Ne5 {[%clk 0:02:30]}  Qb7 {[%clk 0:02:00]} 15. Re3 {[%clk 0:02:23]}  Rfc8 {[%clk 0:01:55]} 16. Qb1 {[%clk 0:02:21]}  a5 {[%clk 0:01:54]} 17. Rh3 {[%clk 0:02:17]}  Bg6 {[%clk 0:01:51]} 18. Nxg6 {[%clk 0:02:13]}  hxg6 {[%clk 0:01:49]} 19. b4 {[%clk 0:02:11]}  axb4 {[%clk 0:01:46]} 20. axb4 {[%clk 0:02:11]}  Ra3 {[%clk 0:01:24]} 21. Nb3 {[%clk 0:02:05]}  Rca8 {[%clk 0:01:19]} 22. Bc2 {[%clk 0:02:02]}  R3a6 {[%clk 0:01:12]} 23. Qd1 {[%clk 0:02:01]}  Nb8 {[%clk 0:01:11]} 24. Re1 {[%clk 0:01:52]}  Nbd7 {[%clk 0:01:10]} 25. Bg5 {[%clk 0:01:43]}  Nf8 {[%clk 0:01:09]} 26. Bc1 {[%clk 0:01:31]}  Ne4 {[%clk 0:00:43]} 27. Rhe3 {[%clk 0:01:21]}  Nd6 {[%clk 0:00:43]} 28. Nc5 {[%clk 0:01:20]}  Qc8 {[%clk 0:00:41]} 29. Nxa6 {[%clk 0:01:21]}  Rxa6 {[%clk 0:00:42]} 30. Bd3 {[%clk 0:01:19]}  Nc4 {[%clk 0:00:42]} 31. Bxc4 {[%clk 0:01:19]}  bxc4 {[%clk 0:00:35]} 32. g3 {[%clk 0:01:20]}  Nd7 {[%clk 0:00:34]} 33. h4 {[%clk 0:01:18]}  Nf6 {[%clk 0:00:34]} 34. f3 {[%clk 0:01:16]}  Qb8 {[%clk 0:00:33]} 35. Kg2 {[%clk 0:01:16]}  Bd6 {[%clk 0:00:33]} 36. f4 {[%clk 0:01:12]}  Ne4 {[%clk 0:00:33]} 37. Rxe4 {[%clk 0:01:11]}  dxe4 {[%clk 0:00:34]} 38. Rxe4 {[%clk 0:01:12]}  Qb7 {[%clk 0:00:34]} 39. Qf3 {[%clk 0:01:11]}  Ra2+ {[%clk 0:00:33]} 40. Kh3 {[%clk 0:01:07]}  Rf2 {[%clk 0:00:19]} 41. Qxf2 {[%clk 0:01:01]}  Qxe4 {[%clk 0:00:20]} 42. Kh2 {[%clk 0:01:01]}  f5 {[%clk 0:00:18]} 43. Bd2 {[%clk 0:00:59]}  Kf7 {[%clk 0:00:18]} 44. Qg2 {[%clk 0:00:51]}  Qc2 {[%clk 0:00:18]} 45. Be1 {[%clk 0:00:50]}  Qd3 {[%clk 0:00:18]} 46. Qb2 {[%clk 0:00:42]}  Be7 {[%clk 0:00:18]} 47. b5 {[%clk 0:00:41]}  Bd6 {[%clk 0:00:19]} 48. b6 {[%clk 0:00:42]}  Bb8 {[%clk 0:00:19]} 49. b7 {[%clk 0:00:41]}  g5 {[%clk 0:00:18]} 50. hxg5 {[%clk 0:00:40]}  Kg6 {[%clk 0:00:19]} 51. Bf2 {[%clk 0:00:37]}  Kh5 {[%clk 0:00:19]} 52. Bg1 {[%clk 0:00:38]}  Kg4 {[%clk 0:00:19]} 53. Qg2 {[%clk 0:00:37]}  Qxc3 {[%clk 0:00:18]} 54. Qh3+ {[%clk 0:00:38]}  Kf3 {[%clk 0:00:19]} 55. g4+ {[%clk 0:00:38]}  Ke4 {[%clk 0:00:19]} 56. Qxc3 {[%clk 0:00:39]}  Bxf4+ {[%clk 0:00:19]} 57. Kg2 {[%clk 0:00:38]} 1-0


[Site "https://www.chess.com"]